[Event "*** SCC Grand Prix: Titled Tuesday Blitz"]
[Site "Chess.com"]
[Date "2020.10.06"]
[Round "10"]
[White "FairChess_on_YouTube"]
[Black "LiamVrolijk"]
[Result "1-0"]
[WhiteElo "2986"]
[BlackElo "2835"]
[TimeControl "180+1"]
[EndTime "11:59:48 PDT"]
[Termination "FairChess_on_YouTube won by checkmate"]

1. d4 {[%clk 0:03:00.9]} 1... Nf6 {[%clk 0:02:59.9]} 2. Bg5 {[%clk 0:03:00]}
2... d5 {[%clk 0:02:58.8]} 3. Nd2 {[%clk 0:02:59.7]} 3... c5 {[%clk 0:02:57.2]}
4. dxc5 {[%clk 0:02:59.7]} 4... Qa5 {[%clk 0:02:50.5]} 5. Nf3 {[%clk 0:02:38.4]}
5... Nbd7 {[%clk 0:02:38.6]} 6. c3 {[%clk 0:02:23.9]} 6... Qxc5 {[%clk
0:02:38.6]} 7. g3 {[%clk 0:02:21.4]} 7... g6 {[%clk 0:02:32.3]} 8. Bg2 {[%clk
0:02:20.4]} 8... Bg7 {[%clk 0:02:33.2]} 9. O-O {[%clk 0:02:20.6]} 9... O-O
{[%clk 0:02:33.7]} 10. Nd4 {[%clk 0:02:12.5]} 10... Qc7 {[%clk 0:02:32]} 11. Nb5
{[%clk 0:02:05.9]} 11... Qb6 {[%clk 0:02:29.8]} 12. c4 {[%clk 0:02:01.5]} 12...
a6 {[%clk 0:02:24.5]} 13. Be3 {[%clk 0:01:58.2]} 13... Qd8 {[%clk 0:02:19.8]}
14. Nc3 {[%clk 0:01:45.8]} 14... Nb6 {[%clk 0:02:19.8]} 15. Bxb6 {[%clk
0:01:07.2]} 15... Qxb6 {[%clk 0:02:20.7]} 16. cxd5 {[%clk 0:01:07]} 16... Qxb2
{[%clk 0:02:19.9]} 17. Rc1 {[%clk 0:01:06.2]} 17... Bd7 {[%clk 0:02:02.6]} 18.
Nc4 {[%clk 0:00:43.3]} 18... Qb4 {[%clk 0:02:02]} 19. Qb3 {[%clk 0:00:43.2]}
19... Qxb3 {[%clk 0:01:51.3]} 20. axb3 {[%clk 0:00:44.1]} 20... Rad8 {[%clk
0:01:48.4]} 21. d6 {[%clk 0:00:42.2]} 21... exd6 {[%clk 0:01:40.1]} 22. Bxb7
{[%clk 0:00:41.9]} 22... Rb8 {[%clk 0:01:18.4]} 23. Bxa6 {[%clk 0:00:30.3]}
23... Rxb3 {[%clk 0:01:17.3]} 24. Nd2 {[%clk 0:00:22.5]} 24... Rb2 {[%clk
0:01:14.1]} 25. Rfd1 {[%clk 0:00:21.3]} 25... Be6 {[%clk 0:01:11.5]} 26. Nde4
{[%clk 0:00:17.7]} 26... Nxe4 {[%clk 0:01:05.8]} 27. Nxe4 {[%clk 0:00:18.6]}
27... d5 {[%clk 0:01:06.7]} 28. Nc5 {[%clk 0:00:17.4]} 28... Ra8 {[%clk
0:01:02.2]} 29. Bd3 {[%clk 0:00:14.8]} 29... Bh6 {[%clk 0:01:00.2]} 30. Rc2
{[%clk 0:00:12.7]} 30... Rxc2 {[%clk 0:01:00.2]} 31. Bxc2 {[%clk 0:00:13.6]}
31... Bf8 {[%clk 0:01:00.2]} 32. Nxe6 {[%clk 0:00:10.6]} 32... fxe6 {[%clk
0:01:01.1]} 33. e3 {[%clk 0:00:10.3]} 33... Ra2 {[%clk 0:01:01.3]} 34. Bd3
{[%clk 0:00:09.9]} 34... Bb4 {[%clk 0:01:01.2]} 35. Bf1 {[%clk 0:00:09.3]} 35...
Kf7 {[%clk 0:00:58.9]} 36. Bh3 {[%clk 0:00:08.9]} 36... Bd6 {[%clk 0:00:55.3]}
37. Rb1 {[%clk 0:00:08.7]} 37... Ra7 {[%clk 0:00:52.5]} 38. Rb6 {[%clk
0:00:08.4]} 38... Ke7 {[%clk 0:00:52.9]} 39. Bg4 {[%clk 0:00:07.1]} 39... h5
{[%clk 0:00:53]} 40. Be2 {[%clk 0:00:06.5]} 40... Ra1+ {[%clk 0:00:49.5]} 41.
Kg2 {[%clk 0:00:06.3]} 41... Ra2 {[%clk 0:00:49.7]} 42. Bd3 {[%clk 0:00:06]}
42... g5 {[%clk 0:00:45.5]} 43. Bg6 {[%clk 0:00:04.2]} 43... Bc5 {[%clk
0:00:42.2]} 44. Rb7+ {[%clk 0:00:04]} 44... Kf6 {[%clk 0:00:42.6]} 45. Bxh5
{[%clk 0:00:04]} 45... Bxe3 {[%clk 0:00:41.8]} 46. Rf7+ {[%clk 0:00:04.5]} 46...
Ke5 {[%clk 0:00:42]} 47. Bg4 {[%clk 0:00:04.6]} 47... Bc5 {[%clk 0:00:38.8]} 48.
h4 {[%clk 0:00:04]} 48... gxh4 {[%clk 0:00:39]} 49. gxh4 {[%clk 0:00:04.9]}
49... Ra4 {[%clk 0:00:37.8]} 50. Kg3 {[%clk 0:00:04]} 50... Ra3+ {[%clk
0:00:36.9]} 51. f3 {[%clk 0:00:04.1]} 51... Ra8 {[%clk 0:00:27]} 52. h5 {[%clk
0:00:04.1]} 52... Rf8 {[%clk 0:00:27.7]} 53. Rb7 {[%clk 0:00:02.9]} 53... Bd6
{[%clk 0:00:27.4]} 54. h6 {[%clk 0:00:02.5]} 54... Kf6+ {[%clk 0:00:27.9]} 55.
Kh4 {[%clk 0:00:02.2]} 55... Kg6 {[%clk 0:00:27.2]} 56. h7 {[%clk 0:00:02.1]}
56... Rh8 {[%clk 0:00:20.6]} 57. Bh5+ {[%clk 0:00:02.4]} 57... Kh6 {[%clk
0:00:21.1]} 58. Rf7 {[%clk 0:00:03]} 58... Rxh7 {[%clk 0:00:19.7]} 59. Rf6+
{[%clk 0:00:03.3]} 59... Kg7 {[%clk 0:00:20.4]} 60. Rxe6 {[%clk 0:00:03.5]}
60... Bf8 {[%clk 0:00:20.1]} 61. Kg5 {[%clk 0:00:03.5]} 61... Kg8 {[%clk
0:00:19]} 62. f4 {[%clk 0:00:03.1]} 62... Be7+ {[%clk 0:00:18.7]} 63. Kg4 {[%clk
0:00:02.6]} 63... Rg7+ {[%clk 0:00:19.2]} 64. Bg6 {[%clk 0:00:02.9]} 64... Bf8
{[%clk 0:00:18.1]} 65. f5 {[%clk 0:00:03.4]} 65... Re7 {[%clk 0:00:18.8]} 66.
Rc6 {[%clk 0:00:02.6]} 66... Re4+ {[%clk 0:00:19.3]} 67. Kg5 {[%clk 0:00:02.7]}
67... Re1 {[%clk 0:00:19.1]} 68. f6 {[%clk 0:00:02.1]} 68... Rg1+ {[%clk
0:00:19.8]} 69. Kf5 {[%clk 0:00:02.6]} 69... Rf1+ {[%clk 0:00:20.4]} 70. Ke6
{[%clk 0:00:03.1]} 70... d4 {[%clk 0:00:19.9]} 71. Bf7+ {[%clk 0:00:02.9]} 71...
Kh7 {[%clk 0:00:20.1]} 72. Rc2 {[%clk 0:00:03.2]} 72... Bh6 {[%clk 0:00:18.8]}
73. Rg2 {[%clk 0:00:03.1]} 73... d3 {[%clk 0:00:18.8]} 74. Bg6+ {[%clk
0:00:03.3]} 74... Kh8 {[%clk 0:00:19.3]} 75. Bxd3 {[%clk 0:00:04.2]} 75... Re1+
{[%clk 0:00:18.7]} 76. Kf7 {[%clk 0:00:04.5]} 76... Ra1 {[%clk 0:00:14.4]} 77.
Rg8# {[%clk 0:00:04.3]} 1-0

[Event "*** SCC Grand Prix: Titled Tuesday Blitz"]
[Site "Chess.com"]
[Date "2020.10.06"]
[Round "10"]
[White "Supernotar"]
[Black "Infernal_XaM"]
[Result "1/2-1/2"]
[WhiteElo "2811"]
[BlackElo "2877"]
[TimeControl "180+1"]
[EndTime "11:59:52 PDT"]
[Termination "Game drawn - insufficient material"]

1. d4 {[%clk 0:03:00.9]} 1... Nf6 {[%clk 0:02:59.8]} 2. c4 {[%clk 0:03:01.2]}
2... e6 {[%clk 0:03:00]} 3. Nf3 {[%clk 0:03:01.4]} 3... b6 {[%clk 0:02:58.4]} 4.
g3 {[%clk 0:03:01.1]} 4... Bb7 {[%clk 0:02:58.9]} 5. Bg2 {[%clk 0:03:01.4]} 5...
Bb4+ {[%clk 0:02:57.6]} 6. Nbd2 {[%clk 0:03:01.3]} 6... c5 {[%clk 0:02:55.8]} 7.
O-O {[%clk 0:03:00]} 7... cxd4 {[%clk 0:02:55.4]} 8. Nxd4 {[%clk 0:03:00.2]}
8... Bxg2 {[%clk 0:02:55.2]} 9. Kxg2 {[%clk 0:03:01.1]} 9... O-O {[%clk
0:02:54]} 10. a3 {[%clk 0:02:58.7]} 10... Be7 {[%clk 0:02:53]} 11. b3 {[%clk
0:02:57.4]} 11... d5 {[%clk 0:02:51.8]} 12. Bb2 {[%clk 0:02:51.7]} 12... e5
{[%clk 0:02:51.1]} 13. Nf5 {[%clk 0:02:51.4]} 13... d4 {[%clk 0:02:51.5]} 14.
Nxe7+ {[%clk 0:02:50.3]} 14... Qxe7 {[%clk 0:02:51.2]} 15. Qc2 {[%clk
0:02:47.7]} 15... Nc6 {[%clk 0:02:50.6]} 16. Ne4 {[%clk 0:02:45.9]} 16... Nd7
{[%clk 0:02:50]} 17. g4 {[%clk 0:02:33.7]} 17... f5 {[%clk 0:02:46.8]} 18. gxf5
{[%clk 0:02:30.6]} 18... Rxf5 {[%clk 0:02:47]} 19. Kh1 {[%clk 0:02:10.1]} 19...
Raf8 {[%clk 0:02:45.3]} 20. f3 {[%clk 0:02:03.9]} 20... Qh4 {[%clk 0:02:39.3]}
21. Rg1 {[%clk 0:02:01.3]} 21... Rh5 {[%clk 0:02:34.5]} 22. Rg2 {[%clk
0:02:01.4]} 22... Nf6 {[%clk 0:02:34.6]} 23. Ng3 {[%clk 0:01:51.4]} 23... Rg5
{[%clk 0:02:26.4]} 24. Rag1 {[%clk 0:01:50.4]} 24... Nd7 {[%clk 0:01:57.4]} 25.
Bc1 {[%clk 0:01:40.3]} 25... Rg6 {[%clk 0:01:49.2]} 26. Nf5 {[%clk 0:01:21.6]}
26... Qf6 {[%clk 0:01:47.9]} 27. Rxg6 {[%clk 0:01:13.6]} 27... hxg6 {[%clk
0:01:47.7]} 28. Ng3 {[%clk 0:01:12.9]} 28... Ne7 {[%clk 0:01:44.2]} 29. Ne4
{[%clk 0:01:06]} 29... Qc6 {[%clk 0:01:43.8]} 30. Qd2 {[%clk 0:00:52.3]} 30...
Rf5 {[%clk 0:01:39.2]} 31. Qe1 {[%clk 0:00:47.7]} 31... Nc5 {[%clk 0:01:35.3]}
32. Ng5 {[%clk 0:00:31.6]} 32... Ne6 {[%clk 0:01:34.9]} 33. Ne4 {[%clk
0:00:29.7]} 33... Rh5 {[%clk 0:01:23.4]} 34. Qg3 {[%clk 0:00:24.9]} 34... Nc5
{[%clk 0:01:13.6]} 35. Ng5 {[%clk 0:00:21.1]} 35... Qf6 {[%clk 0:01:10.5]} 36.
b4 {[%clk 0:00:15]} 36... Ne6 {[%clk 0:01:09.7]} 37. Ne4 {[%clk 0:00:15.2]}
37... Qf5 {[%clk 0:01:04.8]} 38. Bg5 {[%clk 0:00:12.6]} 38... Nxg5 {[%clk
0:00:55.5]} 39. Nxg5 {[%clk 0:00:12.4]} 39... Nc6 {[%clk 0:00:43.4]} 40. Ne4
{[%clk 0:00:12.7]} 40... d3 {[%clk 0:00:41.3]} 41. e3 {[%clk 0:00:09.9]} 41...
Rh3 {[%clk 0:00:40]} 42. Qxg6 {[%clk 0:00:07.3]} 42... Qxg6 {[%clk 0:00:40]} 43.
Rxg6 {[%clk 0:00:07.3]} 43... Rxf3 {[%clk 0:00:40.6]} 44. Rxc6 {[%clk
0:00:06.5]} 44... Rxe3 {[%clk 0:00:41]} 45. Rd6 {[%clk 0:00:02.1]} 45... Rxe4
{[%clk 0:00:39]} 46. Rxd3 {[%clk 0:00:02.4]} 46... Rxc4 {[%clk 0:00:39.6]} 47.
Rd7 {[%clk 0:00:02.6]} 47... Rc6 {[%clk 0:00:30.6]} 48. Rxa7 {[%clk 0:00:02.3]}
48... Kf8 {[%clk 0:00:28.4]} 49. Kg2 {[%clk 0:00:02.9]} 49... Rf6 {[%clk
0:00:28.1]} 50. Kg3 {[%clk 0:00:03.2]} 50... e4 {[%clk 0:00:25.6]} 51. Rc7
{[%clk 0:00:03.3]} 51... e3 {[%clk 0:00:24.5]} 52. Rc3 {[%clk 0:00:03]} 52...
Re6 {[%clk 0:00:25]} 53. Rc1 {[%clk 0:00:03.1]} 53... b5 {[%clk 0:00:24]} 54.
Re1 {[%clk 0:00:03.3]} 54... Kf7 {[%clk 0:00:23.4]} 55. Kf3 {[%clk 0:00:03.9]}
55... Rh6 {[%clk 0:00:23.1]} 56. Re2 {[%clk 0:00:03.5]} 56... Rh3+ {[%clk
0:00:22.7]} 57. Kg4 {[%clk 0:00:04]} 57... Rh6 {[%clk 0:00:21.7]} 58. Kf3 {[%clk
0:00:04.4]} 58... Ra6 {[%clk 0:00:19.8]} 59. Rxe3 {[%clk 0:00:04.4]} 59... Kf6
{[%clk 0:00:17.9]} 60. Kf4 {[%clk 0:00:04.9]} 60... Rc6 {[%clk 0:00:17.1]} 61.
Kg3 {[%clk 0:00:04.6]} 61... Kf5 {[%clk 0:00:16.8]} 62. Kf3 {[%clk 0:00:05.1]}
62... Rc2 {[%clk 0:00:16.1]} 63. Rd3 {[%clk 0:00:05.4]} 63... Rxh2 {[%clk
0:00:14.8]} 64. Rd5+ {[%clk 0:00:05.1]} 64... Kf6 {[%clk 0:00:15.2]} 65. Rxb5
{[%clk 0:00:06]} 65... Rh3+ {[%clk 0:00:15.7]} 66. Kf4 {[%clk 0:00:06.6]} 66...
Rxa3 {[%clk 0:00:16.6]} 67. Rb6+ {[%clk 0:00:07.1]} 67... Kf7 {[%clk 0:00:16.6]}
68. Rb7+ {[%clk 0:00:07.6]} 68... Kg6 {[%clk 0:00:17]} 69. Rb6+ {[%clk
0:00:07.6]} 69... Kh5 {[%clk 0:00:17.5]} 70. b5 {[%clk 0:00:07.5]} 70... g5+
{[%clk 0:00:17.2]} 71. Kf5 {[%clk 0:00:07.6]} 71... Rf3+ {[%clk 0:00:17.2]} 72.
Ke4 {[%clk 0:00:07.9]} 72... g4 {[%clk 0:00:17.3]} 73. Rb8 {[%clk 0:00:08]}
73... Rb3 {[%clk 0:00:17.2]} 74. Kd5 {[%clk 0:00:07.7]} 74... Kh4 {[%clk
0:00:17.2]} 75. Kc6 {[%clk 0:00:07.3]} 75... Rc3+ {[%clk 0:00:17.3]} 76. Kb7
{[%clk 0:00:07]} 76... Kg3 {[%clk 0:00:17.5]} 77. Rg8 {[%clk 0:00:07]} 77... Kf3
{[%clk 0:00:17.1]} 78. b6 {[%clk 0:00:07.3]} 78... g3 {[%clk 0:00:17.4]} 79. Ka8
{[%clk 0:00:06.7]} 79... Ra3+ {[%clk 0:00:17.5]} 80. Kb8 {[%clk 0:00:06.5]}
80... Ra4 {[%clk 0:00:18]} 81. Rxg3+ {[%clk 0:00:04.7]} 81... Kxg3 {[%clk
0:00:18]} 82. b7 {[%clk 0:00:05.3]} 82... Kf4 {[%clk 0:00:18.5]} 83. Kc7 {[%clk
0:00:05.4]} 83... Rc4+ {[%clk 0:00:18.9]} 84. Kd7 {[%clk 0:00:05.9]} 84... Rd4+
{[%clk 0:00:19]} 85. Kc7 {[%clk 0:00:06.2]} 85... Rc4+ {[%clk 0:00:19.3]} 86.
Kd7 {[%clk 0:00:06.5]} 86... Rb4 {[%clk 0:00:19.2]} 87. Kc7 {[%clk 0:00:07]}
87... Rxb7+ {[%clk 0:00:19.2]} 88. Kxb7 {[%clk 0:00:07.3]} 1/2-1/2

[Event "*** SCC Grand Prix: Titled Tuesday Blitz"]
[Site "Chess.com"]
[Date "2020.10.06"]
[Round "10"]
[White "Beca95"]
[Black "Legendinunknown"]
[Result "1-0"]
[WhiteElo "2898"]
[BlackElo "2648"]
[TimeControl "180+1"]
[EndTime "12:00:01 PDT"]
[Termination "Beca95 won on time"]

1. d4 {[%clk 0:03:00.9]} 1... d5 {[%clk 0:02:59.1]} 2. c4 {[%clk 0:03:01]} 2...
c6 {[%clk 0:02:59.7]} 3. Nc3 {[%clk 0:03:00.4]} 3... Nf6 {[%clk 0:03:00.3]} 4.
Nf3 {[%clk 0:03:00.5]} 4... e6 {[%clk 0:03:00.7]} 5. Qd3 {[%clk 0:02:58.3]} 5...
Nbd7 {[%clk 0:02:56.7]} 6. Bf4 {[%clk 0:02:54.7]} 6... Bb4 {[%clk 0:02:47]} 7.
a3 {[%clk 0:02:47.1]} 7... Bxc3+ {[%clk 0:02:47]} 8. Qxc3 {[%clk 0:02:47.4]}
8... Ne4 {[%clk 0:02:47.9]} 9. Qc2 {[%clk 0:02:47]} 9... f5 {[%clk 0:02:43.5]}
10. g3 {[%clk 0:02:44.3]} 10... Qf6 {[%clk 0:02:41.2]} 11. h4 {[%clk 0:02:40.2]}
11... a5 {[%clk 0:02:37.1]} 12. Bg2 {[%clk 0:02:39.5]} 12... a4 {[%clk
0:02:33.7]} 13. O-O {[%clk 0:02:39.4]} 13... O-O {[%clk 0:02:33.4]} 14. c5
{[%clk 0:02:36.3]} 14... h6 {[%clk 0:02:31.5]} 15. Be5 {[%clk 0:02:29.4]} 15...
Nxe5 {[%clk 0:02:30]} 16. Nxe5 {[%clk 0:02:30.3]} 16... Qd8 {[%clk 0:02:13.3]}
17. Bxe4 {[%clk 0:02:26.5]} 17... fxe4 {[%clk 0:02:09.7]} 18. f3 {[%clk
0:02:25.5]} 18... exf3 {[%clk 0:02:05.1]} 19. Rxf3 {[%clk 0:02:25.4]} 19... Rxf3
{[%clk 0:02:05.1]} 20. exf3 {[%clk 0:02:26.2]} 20... Bd7 {[%clk 0:02:04.8]} 21.
Re1 {[%clk 0:02:24.5]} 21... Be8 {[%clk 0:02:04.1]} 22. b4 {[%clk 0:02:00.5]}
22... axb3 {[%clk 0:01:53.1]} 23. Qxb3 {[%clk 0:02:00.7]} 23... Ra7 {[%clk
0:01:53]} 24. Qb4 {[%clk 0:01:58.8]} 24... Qf6 {[%clk 0:01:47.3]} 25. Kf2 {[%clk
0:01:57.7]} 25... Qf5 {[%clk 0:01:46.4]} 26. Re2 {[%clk 0:01:56.7]} 26... Qh3
{[%clk 0:01:37.9]} 27. g4 {[%clk 0:01:38.2]} 27... Qh2+ {[%clk 0:01:33.4]} 28.
Ke3 {[%clk 0:01:37.8]} 28... Qxh4 {[%clk 0:01:30]} 29. a4 {[%clk 0:01:37.9]}
29... Qg5+ {[%clk 0:01:25.7]} 30. Kf2 {[%clk 0:01:37.8]} 30... Qf4 {[%clk
0:01:14.4]} 31. Kg2 {[%clk 0:01:36.1]} 31... Qc1 {[%clk 0:01:13.1]} 32. a5
{[%clk 0:01:34.6]} 32... Qa1 {[%clk 0:01:10.2]} 33. Nd3 {[%clk 0:01:28.8]} 33...
Bf7 {[%clk 0:01:08.5]} 34. Ne5 {[%clk 0:01:21.6]} 34... Qxa5 {[%clk 0:01:05.5]}
35. Qb3 {[%clk 0:01:20.5]} 35... Be8 {[%clk 0:00:50]} 36. Qe3 {[%clk 0:01:19.4]}
36... Qb5 {[%clk 0:00:38.5]} 37. Rf2 {[%clk 0:01:16.2]} 37... Ra1 {[%clk
0:00:34.7]} 38. Kg3 {[%clk 0:00:50.4]} 38... Qb1 {[%clk 0:00:30.7]} 39. Rg2
{[%clk 0:00:50.5]} 39... Qe1+ {[%clk 0:00:15]} 40. Qxe1 {[%clk 0:00:49.1]} 40...
Rxe1 {[%clk 0:00:15.9]} 41. Ra2 {[%clk 0:00:49.2]} 41... Rd1 {[%clk 0:00:15.2]}
42. Ra8 {[%clk 0:00:48.7]} 42... Kf8 {[%clk 0:00:15.5]} 43. Ra4 {[%clk
0:00:45.4]} 43... Ke7 {[%clk 0:00:15.5]} 44. Rb4 {[%clk 0:00:45.7]} 44... Kd8
{[%clk 0:00:13.1]} 45. Rxb7 {[%clk 0:00:42.6]} 45... Rxd4 {[%clk 0:00:13.2]} 46.
Rxg7 {[%clk 0:00:42.6]} 46... Rd1 {[%clk 0:00:12.8]} 47. Rh7 {[%clk 0:00:42.5]}
47... Rc1 {[%clk 0:00:12.5]} 48. Rxh6 {[%clk 0:00:40.7]} 48... Rxc5 {[%clk
0:00:13]} 49. Rxe6 {[%clk 0:00:39.1]} 49... Rc3 {[%clk 0:00:12.6]} 50. g5 {[%clk
0:00:37.9]} 50... c5 {[%clk 0:00:08.7]} 51. Rd6+ {[%clk 0:00:37.8]} 51... Ke7
{[%clk 0:00:08.9]} 52. Rf6 {[%clk 0:00:35.9]} 52... d4 {[%clk 0:00:08.5]} 53.
Rh6 {[%clk 0:00:20.9]} 53... d3 {[%clk 0:00:07.4]} 54. Rh2 {[%clk 0:00:20.9]}
54... c4 {[%clk 0:00:07.1]} 55. Rh7+ {[%clk 0:00:16.2]} 55... Ke6 {[%clk
0:00:06.1]} 56. Kf4 {[%clk 0:00:16.3]} 56... d2 {[%clk 0:00:05.6]} 57. Rh6+
{[%clk 0:00:16.6]} 57... Kd5 {[%clk 0:00:05]} 58. Rh8 {[%clk 0:00:12.1]} 58...
d1=Q {[%clk 0:00:03.4]} 59. Rxe8 {[%clk 0:00:12.4]} 59... Qc1+ {[%clk
0:00:03.8]} 60. Kf5 {[%clk 0:00:12.7]} 60... Qc2+ {[%clk 0:00:03.3]} 61. Kf6
{[%clk 0:00:13.1]} 61... Re3 {[%clk 0:00:03.7]} 62. f4 {[%clk 0:00:13]} 62...
Re4 {[%clk 0:00:03.5]} 63. f5 {[%clk 0:00:12.7]} 63... Qc3 {[%clk 0:00:03.5]}
64. Rd8+ {[%clk 0:00:11.3]} 64... Kc5 {[%clk 0:00:03.9]} 65. Rc8+ {[%clk
0:00:11.8]} 65... Kb6 {[%clk 0:00:03.7]} 66. Re8 {[%clk 0:00:10.9]} 66... Qd4
{[%clk 0:00:03.9]} 67. g6 {[%clk 0:00:09.4]} 67... c3 {[%clk 0:00:03.6]} 68. g7
{[%clk 0:00:09.5]} 68... c2 {[%clk 0:00:04.1]} 69. g8=Q {[%clk 0:00:08.9]} 69...
c1=Q {[%clk 0:00:04.3]} 70. Rb8+ {[%clk 0:00:08.7]} 70... Ka5 {[%clk 0:00:04.4]}
71. Qa2+ {[%clk 0:00:07]} 71... Qa4 {[%clk 0:00:02.4]} 72. Ra8+ {[%clk
0:00:07.4]} 72... Kb5 {[%clk 0:00:02.6]} 73. Rxa4 {[%clk 0:00:06.6]} 73... Qh6+
{[%clk 0:00:02.2]} 74. Ng6 {[%clk 0:00:07]} 74... Rxa4 {[%clk 0:00:02.5]} 75.
Qd5+ {[%clk 0:00:06.3]} 75... Kb4 {[%clk 0:00:02.5]} 76. Qd4+ {[%clk 0:00:06.2]}
76... Ka5 {[%clk 0:00:02.3]} 77. Qa7+ {[%clk 0:00:06]} 77... Kb4 {[%clk
0:00:02.4]} 78. Qb7+ {[%clk 0:00:06.4]} 78... Ka3 {[%clk 0:00:02.6]} 79. Ke6
{[%clk 0:00:06.7]} 79... Qe3+ {[%clk 0:00:02.4]} 80. Kf7 {[%clk 0:00:07]} 80...
Qc5 {[%clk 0:00:02.3]} 81. f6 {[%clk 0:00:05.9]} 81... Ra7 {[%clk 0:00:02.4]}
82. Qe7 {[%clk 0:00:05.8]} 82... Kb4 {[%clk 0:00:01.5]} 83. Kf8 {[%clk
0:00:04.2]} 1-0